bitfinex/quotes_SOLUSD_20250719
["timestamp","ask_amount","ask_price","bid_price","bid_amount"]
[1752892440558,3.04026727,176.57,176.56,1e-08]
[1752892440871,3.04026727,176.57,176.56,40.02000001]
[1752892441075,3.04026727,176.57,176.56,40.74000001]
[1752892441873,8.70374351,176.57,176.56,40.74000001]
[1752892442177,8.70374351,176.57,176.56,40.02000001]
[1752892442854,9.40374351,176.57,176.56,40.02000001]
[1752892443149,26.18842748,176.57,176.56,1e-08]
[1752892443675,9.40374351,176.57,176.56,1e-08]
[1752892446796,8.70374351,176.57,176.56,1e-08]
[1752892447187,5.66347624,176.57,176.56,0.72000001]
[1752892447368,8.70374351,176.57,176.56,0.72000001]
[1752892447567,9.39374351,176.57,176.56,1e-08]
[1752892449081,8.70374351,176.57,176.56,1e-08]
[1752892450586,5.66347624,176.57,176.56,1e-08]
[1752892450786,8.70374351,176.57,176.56,1e-08]
[1752892453598,8.70374351,176.57,176.56,0.72000001]
[1752892456495,5.722609,176.6,176.56,3.76026728]
[1752892456802,5.722609,176.6,176.57,43.78026727]
[1752892457107,5.722609,176.6,176.58,0.72]
[1752892457400,3.04026727,176.61,176.57,43.06026727]
[1752892457607,3.04026727,176.61,176.59,0.72]
[1752892458514,3.04026727,176.63,176.6,0.72]
[1752892458715,3.04026727,176.63,176.61,40.02]
[1752892459013,3.04026727,176.63,176.62,0.72]
[1752892459612,3.04026727,176.63,176.61,40.02]
[1752892459824,3.04026727,176.63,176.61,40.74]
[1752892460005,3.04026727,176.63,176.61,40.02]
[1752892460211,3.04026727,176.63,176.62,0.72]
[1752892460806,5.66155239,176.63,176.62,0.72]
[1752892462110,5.66124239,176.64,176.62,0.72]
[1752892463413,8.70150966,176.64,176.63,0.72]
[1752892465100,5.66124239,176.64,176.63,0.72]
[1752892467423,5.72124239,176.64,176.63,0.72]
[1752892468218,8.76150966,176.64,176.61,40.74]
[1752892468602,3.04026727,176.63,176.62,0.72]
[1752892469597,0.06,176.64,176.62,0.72]
[1752892469797,3.10026727,176.64,176.63,0.72]
[1752892471334,8.76149915,176.64,176.63,0.72]
[1752892472312,0.06,176.64,176.63,0.72]
[1752892474711,0.06,176.64,176.63,3.76026727]
[1752892475520,0.06,176.64,176.63,0.72]
[1752892478617,0.06,176.64,176.63,3.76026727]
[1752892479743,0.06,176.64,176.63,0.72]
[1752892480129,0.06,176.64,176.63,3.76026727]
[1752892482049,0.06,176.64,176.63,0.72]
[1752892482254,0.06,176.64,176.63,3.76026727]
[1752892484634,0.06,176.64,176.63,0.72]
[1752892484959,0.06,176.64,176.63,3.76026727]
[1752892487680,0.06,176.64,176.63,9.42181966]
[1752892487960,0.06,176.64,176.63,139.74650363]
[1752892488972,0.06,176.64,176.63,136.70623636]
[1752892489148,0.06,176.64,176.63,139.74650363]
[1752892490962,0.06,176.64,176.63,179.70650363]
[1752892493562,0.06,176.64,176.63,154.22]
[1752892493766,0.06,176.64,176.63,157.26026727]
[1752892495468,0.06,176.64,176.63,162.92181966]
[1752892495779,0.06,176.64,176.63,179.70650363]
[1752892496067,0.06,176.65,176.63,179.70650363]
[1752892496269,0.06,176.68,176.67,26.0]
[1752892496490,0.06,176.68,176.67,159.58053454]
[1752892496846,0.06,176.68,176.67,160.29053454]
[1752892497657,0.06,176.68,176.67,165.9508051]
[1752892498575,0.06,176.68,176.67,182.73548907]
[1752892500877,0.1,176.71,176.67,182.73548907]
[1752892500878,0.1,176.71,176.7,22.94608397]
[1752892501180,5.65482922,176.84,176.73,26.0]
[1752892501473,6.28482922,176.84,176.8,3.04026727]
[1752892501780,0.63,176.83,176.81,39.94]
[1752892502299,6.28539396,176.83,176.81,39.94]
[1752892502452,5.65485814,176.84,176.81,42.98026727]
[1752892502774,5.65456693,176.85,176.81,43.69026727]
[1752892503081,5.65456693,176.85,176.82,3.04026727]
[1752892503378,5.65456693,176.85,176.83,39.94]
[1752892503598,3.67026727,176.84,176.83,39.94]
[1752892504088,0.63,176.84,176.83,39.94]
[1752892504395,8.6948342,176.85,176.83,39.94]
[1752892504902,9.3248342,176.85,176.83,39.94]
[1752892506198,6.28482922,176.84,176.83,39.94]
[1752892506876,5.65482922,176.84,176.83,39.94]
[1752892507194,8.69484258,176.85,176.83,39.94]
[1752892508119,5.75422302,176.86,176.83,40.66]
[1752892508278,0.1,176.86,176.84,0.72]
[1752892508592,0.1,176.86,176.85,39.94]
[1752892508789,5.75418975,176.86,176.85,39.94]
[1752892509192,0.1,176.86,176.85,39.94]
[1752892509373,5.75418975,176.86,176.85,39.94]
[1752892509899,0.1,176.86,176.85,40.66]
[1752892510079,0.1,176.86,176.85,43.70026727]
[1752892510480,0.1,176.86,176.85,40.66]
[1752892511004,0.1,176.86,176.85,39.94]
[1752892512277,5.75418975,176.86,176.85,39.94]
[1752892512488,9.42445702,176.86,176.85,39.92]
[1752892513201,0.1,176.86,176.85,39.92]
[1752892513407,9.42445702,176.86,176.8,114.26]
[1752892513581,6.38418975,176.86,176.81,42.96026727]
[1752892513901,0.63,176.85,176.81,42.96026727]
[1752892514073,0.63,176.85,176.81,43.68026727]
[1752892514272,6.28460976,176.85,176.81,43.68026727]
[1752892514498,5.65460976,176.85,176.82,3.04026727]
[1752892514695,0.1,176.86,176.83,43.68026727]
[1752892514895,0.1,176.86,176.84,0.72]
[1752892515090,0.1,176.86,176.85,39.92]
[1752892515296,9.42449319,176.86,176.85,39.92]
[1752892516096,6.38422592,176.86,176.85,39.92]
[1752892516392,0.1,176.86,176.85,39.92]
[1752892516792,5.75418975,176.86,176.85,39.92]
[1752892517208,0.1,176.86,176.85,39.92]
[1752892520613,5.75418975,176.86,176.85,39.92]
[1752892521029,8.79445702,176.86,176.85,39.92]
[1752892521323,5.75418975,176.86,176.85,39.92]
[1752892521706,0.1,176.86,176.85,39.92]
[1752892522595,0.1,176.86,176.85,40.64]
[1752892524124,5.75418975,176.86,176.85,39.92]
[1752892524417,0.1,176.86,176.85,39.92]
[1752892525389,8.79445702,176.86,176.85,39.9]
[1752892525621,5.75418975,176.86,176.85,39.9]
[1752892525917,9.42445702,176.86,176.85,39.9]
[1752892526116,6.38418975,176.86,176.85,39.9]
[1752892526315,9.42445702,176.86,176.85,39.9]
[1752892528205,16.78468397,176.85,176.73,0.72]
[1752892528528,3.04026727,176.75,176.73,0.72]
[1752892528715,3.04026727,176.76,176.74,39.9]
[1752892529046,5.65610859,176.8,176.75,0.72]
[1752892529213,3.04026727,176.78,176.75,0.72]
[1752892529892,5.65610859,176.8,176.76,0.72]
[1752892530092,5.65610859,176.8,176.77,39.9]
[1752892530321,5.65610859,176.8,176.78,0.72]
[1752892530718,5.65610859,176.8,176.78,3.76026727]
[1752892530928,3.04026727,176.85,176.79,3.76026727]
[1752892531103,5.65450947,176.85,176.82,3.04026727]
[1752892531304,5.65450947,176.85,176.83,39.9]
[1752892531699,3.67026727,176.84,176.83,39.9]
[1752892533127,9.32509649,176.84,176.83,39.9]
[1752892533423,6.28482922,176.84,176.83,39.9]
[1752892533632,8.69509649,176.84,176.83,39.9]
[1752892533839,5.65482922,176.84,176.83,39.9]
[1752892534340,5.65456743,176.85,176.83,40.62]
[1752892535009,5.65456743,176.85,176.83,39.9]
[1752892535210,8.79454045,176.86,176.83,40.62]
[1752892536436,5.75427318,176.86,176.84,0.72]
[1752892536642,8.79454045,176.86,176.83,39.9]
[1752892536819,8.79454045,176.86,176.83,40.62]
[1752892537217,0.1,176.86,176.84,0.72]
[1752892537534,5.75420672,176.86,176.84,0.72]
[1752892537738,5.75420672,176.86,176.83,39.9]
[1752892537739,3.04026727,176.85,176.83,39.9]
[1752892538033,3.04026727,176.84,176.83,39.9]
[1752892538616,5.75420672,176.86,176.83,39.9]
[1752892538927,3.04026727,176.85,176.83,40.62]
[1752892539129,3.04026727,176.85,176.83,39.9]
[1752892539447,3.04026727,176.84,176.83,39.9]
[1752892539817,5.75426927,176.86,176.83,40.62]
[1752892540025,5.75426927,176.86,176.84,0.72]
[1752892540225,5.75426927,176.86,176.85,0.72]
[1752892540845,0.1,176.86,176.85,0.72]
[1752892542920,5.75418975,176.86,176.85,0.72]
[1752892543137,5.75418975,176.86,176.83,39.9]
[1752892543455,5.75418975,176.86,176.83,40.62]
[1752892543633,5.75418975,176.86,176.84,0.72]
[1752892544122,0.1,176.86,176.85,0.72]
[1752892544540,0.1,176.86,176.85,3.76026727]
[1752892545650,0.1,176.86,176.85,0.72]
[1752892545839,0.1,176.86,176.85,3.76026727]
[1752892548120,0.1,176.86,176.85,35.41477674]
[1752892548324,0.1,176.86,176.85,141.89591165]
[1752892548544,0.06,176.88,176.85,144.37072798]
[1752892548752,0.06,176.9,176.89,26.0]
[1752892548942,10.69036043,176.99,176.89,72.52585762]
[1752892549137,7.65009316,176.99,176.94,3.04026727]
[1752892549443,2.0,176.99,176.96,3.04026727]
[1752892549638,2.0,176.99,176.97,40.6]
[1752892549836,2.0,176.99,176.98,0.72]
[1752892550049,2.0,176.99,176.97,42.92026727]
[1752892550050,7.65003672,176.99,176.97,39.88]
[1752892550265,7.65003672,176.99,176.97,40.6]
[1752892550566,2.0,176.99,176.97,40.6]
[1752892550948,2.0,176.99,176.98,0.72]
[1752892553367,2.0,176.99,176.97,43.64026727]
[1752892553547,2.0,176.99,176.98,0.72]
[1752892554460,7.65004636,176.99,176.97,42.92026727]
[1752892554666,7.65004636,176.99,176.97,43.64026727]
[1752892554851,7.65004636,176.99,176.97,42.92026727]
[1752892555046,7.65004636,176.99,176.98,0.72]
[1752892555248,7.65004636,176.99,176.97,42.92026727]
[1752892555451,7.65004636,176.99,176.97,43.64026727]
[1752892555652,7.65004636,176.99,176.97,42.92026727]
[1752892555966,7.65004636,176.99,176.97,43.64026727]
[1752892556173,2.0,176.99,176.97,42.92026727]
[1752892556380,2.0,176.99,176.98,0.72]
[1752892557066,2.06,176.99,176.98,0.72]
[1752892557650,2.06,176.99,176.98,3.76026727]
[1752892560780,2.06,176.99,176.98,30.32530286]
[1752892560953,2.06,176.99,176.98,27.28503559]
[1752892561157,2.06,176.99,176.98,29.76026727]
[1752892561874,2.06,176.99,176.98,69.62026727]
[1752892562293,2.06,176.99,176.94,94.1235]
[1752892562464,2.06,176.99,176.97,29.04026727]
[1752892562660,2.06,176.99,176.98,39.86]
[1752892562859,2.06,176.99,176.98,42.90026727]
[1752892563058,2.06,176.99,176.98,43.62026727]
[1752892563769,1.34,176.99,176.98,60.40495124]
[1752892564003,1.34,176.99,176.98,57.36468397]
[1752892564183,1.34,176.99,176.98,60.40495124]
[1752892564497,1.34,176.99,176.98,66.05530721]
[1752892564701,1.34,176.99,176.98,40.58]
[1752892564934,1.34,176.99,176.96,0.72]
[1752892565069,2.0,176.99,176.96,3.04026727]
[1752892565405,0.66,176.98,176.97,39.86]
[1752892566271,6.31035597,176.98,176.97,39.86]
[1752892566993,9.39062324,176.98,176.91,0.67]
[1752892567164,9.39062324,176.98,176.89,90.64026727]
[1752892567165,0.7,176.97,176.92,39.86]
[1752892567370,3.74026727,176.97,176.92,39.86]
[1752892567570,0.7,176.96,176.92,42.90026727]
[1752892567981,0.7,176.95,176.92,42.90026727]
[1752892568187,5.65163332,176.94,176.92,42.90026727]
[1752892568493,5.65035597,176.98,176.93,3.71026727]
[1752892568673,0.7,176.97,176.94,39.9]
[1752892568872,0.7,176.96,176.94,39.9]
[1752892569076,0.7,176.95,176.93,0.5]
[1752892569279,0.7,176.94,176.9,116.64026727]
[1752892569483,0.7,176.94,176.92,3.04026727]
[1752892569682,0.7,176.96,176.93,39.92]
[1752892570281,5.65131393,176.95,176.93,39.92]
[1752892571119,5.65035597,176.98,176.94,3.71026727]
[1752892571327,6.9900727,176.99,176.96,3.04026727]
[1752892571599,1.34,176.99,176.98,3.04026727]
[1752892574094,1.34,176.99,176.98,3.71026727]
[1752892575495,7.69003672,176.99,176.98,39.94]
[1752892575696,2.04,176.99,176.98,39.94]
[1752892575875,1.34,176.99,176.98,42.98026727]
[1752892576080,1.34,176.99,176.98,43.65026727]
[1752892577404,1.34,176.99,176.98,44.21530286]
[1752892578478,1.34,176.99,176.98,49.86565883]
[1752892578736,1.34,176.99,176.98,50.36565883]
[1752892579386,1.34,176.99,176.98,67.1503428]
[1752892580185,1.34,176.99,176.98,154.7503428]
[1752892580395,1.34,176.99,176.98,154.18530721]
[1752892582297,0.06,177.03,177.02,26.0]
[1752892582480,0.06,177.03,177.02,73.38544246]
[1752892582685,0.06,177.03,177.02,178.44012643]
[1752892582905,0.06,177.03,177.02,177.87521851]
[1752892583999,0.06,177.03,177.02,183.52429771]
[1752892585211,2.2825,177.17,177.1,26.0]
[1752892585412,6.34434977,177.17,177.11,40.72]
[1752892585587,6.34434977,177.17,177.11,41.39]
[1752892586016,5.64365934,177.19,177.12,0.67]
[1752892586184,6.3982,177.2,177.13,40.68]
[1752892586501,0.7,177.19,177.16,3.04026727]
[1752892586701,0.7,177.18,177.17,40.94]
[1752892587092,6.34397787,177.18,177.17,40.94]
[1752892587293,0.7,177.2,177.17,40.94]
[1752892587491,0.7,177.2,177.17,43.98026727]
[1752892587800,3.74026727,177.19,177.18,40.98]
[1752892587997,0.7,177.19,177.18,40.98]
[1752892588404,0.7,177.19,177.18,41.0]
[1752892588908,3.74026727,177.19,177.18,41.0]
[1752892589105,9.38392661,177.19,177.18,41.0]
[1752892589307,6.34365934,177.19,177.18,41.0]
[1752892589701,5.6433601,177.2,177.18,44.04026727]
[1752892589891,6.34295971,177.22,177.19,3.04026727]
[1752892590091,1.5731,177.25,177.21,3.04026727]
[1752892590314,0.7,177.24,177.22,42.1]
[1752892590613,10.25533064,177.25,177.22,42.1]
[1752892590914,0.7,177.23,177.22,42.1]
[1752892591096,6.3423856,177.23,177.22,42.1]
[1752892591291,9.38265287,177.23,177.22,42.1]
[1752892592209,6.3423856,177.23,177.22,42.1]
[1752892592519,9.38265287,177.23,177.22,42.1]
[1752892592816,23.48861687,177.23,177.2,42.16]
[1752892593110,8.68328967,177.21,177.2,42.16]
[1752892593414,9.38328967,177.21,177.15,3.04026727]
[1752892593606,3.04026727,177.17,177.13,3.04026727]
[1752892593923,3.04026727,177.17,177.14,42.14]
[1752892594094,0.7,177.16,177.14,42.14]
[1752892594599,3.04026727,177.18,177.14,45.18026727]
[1752892594807,3.74026727,177.18,177.14,45.85026727]
[1752892595006,0.7,177.18,177.14,45.85026727]
[1752892595316,6.34419874,177.18,177.14,45.85026727]
[1752892595898,9.38446601,177.18,177.14,45.85026727]
[1752892596223,9.38446601,177.18,177.14,42.14]
[1752892596224,8.68446601,177.18,177.14,42.14]
[1752892596406,0.06,177.21,177.18,26.0]
[1752892596608,0.06,177.21,177.19,42.06]
[1752892597123,6.38313846,177.21,177.19,42.06]
[1752892597427,3.72026727,177.2,177.18,42.04]
[1752892597735,3.72026727,177.19,177.18,42.04]
[1752892597897,0.68,177.19,177.18,42.04]
[1752892598097,3.72026727,177.19,177.18,42.04]
[1752892599130,5.64397787,177.18,177.13,26.0]
[1752892599312,3.72026727,177.17,177.14,42.04]
[1752892599503,3.04026727,177.16,177.14,42.04]
[1752892599822,3.72026727,177.16,177.14,42.04]
[1752892599996,0.68,177.16,177.14,42.04]
[1752892600197,3.72026727,177.16,177.14,42.04]
[1752892600423,3.04026727,177.16,177.14,42.04]
[1752892600598,3.72026727,177.15,177.14,42.04]
[1752892601307,9.36520094,177.15,177.14,42.04]
[1752892606106,6.32493367,177.15,177.14,42.04]
[1752892606315,8.68520094,177.15,177.14,42.04]
[1752892607732,9.36520094,177.15,177.14,42.04]
[1752892608498,6.32493367,177.15,177.14,42.04]
[1752892608908,6.32429643,177.17,177.13,41.86]
[1752892609126,9.3645637,177.17,177.13,42.52]
[1752892609428,8.6845637,177.17,177.14,0.66]
[1752892609633,5.64429643,177.17,177.14,0.66]
[1752892609940,8.6845637,177.17,177.14,0.66]
[1752892610509,0.06,177.19,177.15,0.66]
[1752892610724,3.10026727,177.19,177.13,41.86]
[1752892610915,3.04026727,177.18,177.15,0.66]
[1752892611114,3.78026727,177.19,177.15,0.66]
[1752892611836,0.74,177.19,177.15,0.66]
[1752892612038,3.78026727,177.19,177.15,0.66]
[1752892612631,8.68424514,177.18,177.13,44.90026727]
[1752892612830,3.04026727,177.15,177.14,41.82]
[1752892613040,3.72026727,177.15,177.14,41.82]
[1752892614717,6.32493367,177.15,177.14,41.82]
[1752892614937,9.36520094,177.15,177.14,41.82]
[1752892615134,8.68520094,177.15,177.14,41.82]
[1752892615824,9.36520094,177.15,177.14,41.82]
[1752892617515,23.47753512,177.15,177.11,41.74]
[1752892617715,3.04026727,177.12,177.11,41.74]
[1752892617922,3.72026727,177.12,177.11,41.74]
[1752892618719,3.04026727,177.12,177.11,41.74]
[1752892618940,3.72026727,177.12,177.11,41.74]
[1752892619239,6.32588979,177.12,177.11,41.74]
[1752892619441,9.36615706,177.12,177.05,88.26]
[1752892619615,3.04026727,177.09,177.06,41.7]
[1752892619815,0.68,177.11,177.06,42.36]
[1752892620014,3.04026727,177.09,177.06,42.36]
[1752892620436,5.64716512,177.08,177.06,42.86]
[1752892621217,5.64716512,177.08,177.07,0.66]
[1752892622614,5.64716512,177.08,177.06,0.5]
[1752892622833,0.68,177.07,177.02,45.97126727]
[1752892623023,3.04026727,177.07,177.03,45.34026727]
[1752892623224,8.68743239,177.08,177.04,0.66]
[1752892623438,8.68743239,177.08,177.05,0.66]
[1752892623641,3.04026727,177.07,177.05,0.66]
[1752892623842,3.04026727,177.07,177.06,41.64]
[1752892624037,3.72026727,177.07,177.06,41.64]
[1752892624414,3.04026727,177.07,177.06,41.64]
[1752892625019,8.68775131,177.07,177.06,41.64]
[1752892625218,9.36775131,177.07,177.06,41.64]
[1752892630751,8.68775131,177.07,177.06,41.64]
[1752892631270,9.40775131,177.07,177.06,41.64]
[1752892633251,6.36748404,177.07,177.06,41.64]
[1752892633439,9.40775131,177.07,177.06,41.64]
[1752892634925,23.52646142,177.07,177.03,0.03]
[1752892635150,3.04026727,177.04,177.03,41.47]
[1752892635347,3.76026727,177.04,177.03,41.47]
[1752892636647,6.80053454,177.04,177.0,41.42]
[1752892636956,3.04026727,177.01,177.0,41.42]
[1752892637167,3.76026727,177.01,177.0,41.42]
[1752892637459,0.72,177.01,176.99,0.03]
[1752892637681,5.64876009,177.03,176.99,0.74]
[1752892637830,5.64876009,177.03,177.0,42.15]
[1752892638030,3.04026727,177.02,177.0,42.15]
[1752892638439,5.64876009,177.03,177.01,0.71]
[1752892638638,5.64876009,177.03,177.02,0.71]
[1752892639133,8.68902736,177.03,177.02,0.71]
[1752892640074,8.68902736,177.03,177.0,41.44]
[1752892640245,3.04026727,177.01,177.0,41.44]
[1752892640443,3.04026727,177.02,177.0,41.44]
[1752892640940,3.04026727,177.02,177.0,42.15]
[1752892641137,5.64939833,177.01,177.0,42.15]
[1752892641832,8.6896656,177.01,177.0,41.44]
[1752892642543,5.64939833,177.01,177.0,42.15]
[1752892643970,8.68934647,177.02,177.0,42.15]
[1752892644356,3.04026727,177.01,177.0,41.44]
[1752892644560,3.76026727,177.01,176.99,41.41]
[1752892644771,3.76026727,177.0,176.99,41.41]
[1752892645156,3.04026727,177.0,176.99,41.41]
[1752892645569,3.04026727,177.01,176.99,41.41]
[1752892646176,6.3690792,177.02,176.99,41.41]
[1752892646477,3.04026727,177.01,176.99,41.41]
[1752892648877,5.64971751,177.0,176.99,41.41]
[1752892649080,8.68998478,177.0,176.99,41.41]
[1752892649265,9.40998478,177.0,176.99,41.41]
[1752892649780,9.40998478,177.0,176.99,0.03]
[1752892649992,9.40998478,177.0,176.98,0.03]
[1752892650163,0.72,176.99,176.98,0.03]
[1752892650499,3.76026727,176.99,176.98,0.03]
[1752892650666,6.37003672,176.99,176.98,0.03]
[1752892650984,8.69030399,176.99,176.98,0.03]
[1752892651168,5.65003672,176.99,176.98,0.03]
[1752892651556,8.69030399,176.99,176.98,0.74]
[1752892651781,5.65003672,176.99,176.98,0.74]
[1752892652683,8.69030399,176.99,176.98,0.03]
[1752892652873,9.41030399,176.99,176.98,0.03]
[1752892653182,8.69030399,176.99,176.98,0.03]
[1752892653811,5.65003672,176.99,176.98,0.74]
[1752892654779,5.64939833,177.01,176.98,0.74]
[1752892655079,5.64844103,177.04,176.99,41.34]
[1752892655267,5.64844103,177.04,177.0,3.75026727]
[1752892655581,5.64844103,177.04,177.01,3.75026727]
[1752892655784,5.64748404,177.07,177.02,0.71]
[1752892655966,8.68775131,177.07,177.02,3.75026727]
[1752892656175,8.68775131,177.07,177.03,0.7]
[1752892656488,8.68775131,177.07,177.04,41.36]
[1752892656864,5.64812199,177.05,177.04,41.36]
[1752892657175,9.37838926,177.05,177.04,41.36]
[1752892657557,5.64812199,177.05,177.04,41.36]
[1752892658982,5.64812199,177.05,177.04,42.06]
[1752892659185,8.68838926,177.05,177.04,41.36]
[1752892659782,5.64812199,177.05,177.04,41.36]
[1752892659960,8.68838926,177.05,177.04,41.36]
[1752892660161,9.37838926,177.05,177.04,41.36]
[1752892660375,6.33812199,177.05,177.04,41.36]
[1752892660580,9.37838926,177.05,177.04,41.36]
[1752892660784,9.37838926,177.05,177.01,41.3]
[1752892661080,5.6490792,177.02,177.01,41.3]
[1752892661589,5.6490792,177.02,177.01,42.0]
[1752892662074,5.64874808,177.04,177.01,42.0]
[1752892662273,5.64874808,177.04,177.02,0.7]
[1752892662480,5.64874808,177.04,177.03,0.7]
[1752892663561,5.64874808,177.04,177.01,42.0]
[1752892663886,5.64874808,177.04,177.02,0.7]
[1752892664405,8.68901535,177.04,177.01,41.3]
[1752892664572,8.68901535,177.04,177.01,42.0]
[1752892665566,8.68901535,177.04,177.01,41.3]
[1752892665773,9.37901535,177.04,177.01,41.3]
[1752892665989,3.04026727,177.03,177.01,41.3]
[1752892666505,3.73026727,177.02,176.98,41.27]
[1752892666708,3.04026727,177.03,176.98,41.27]
[1752892666709,3.04026727,176.99,176.98,41.27]
[1752892667079,3.04026727,177.0,176.98,41.97]
[1752892668400,14.81110257,177.04,176.99,0.7]
[1752892668574,3.04026727,177.02,177.0,0.7]
[1752892670069,5.64876009,177.03,176.99,0.03]
[1752892670070,3.04026727,177.01,176.99,0.03]
[1752892670389,8.68998478,177.0,176.99,0.03]
[1752892670870,5.64971751,177.0,176.99,0.03]
[1752892671189,8.68998478,177.0,176.99,0.03]
[1752892673994,8.68998478,177.0,176.99,0.73]
[1752892675194,5.6490792,177.02,176.99,0.73]
[1752892675500,3.04026727,177.01,176.99,0.73]
[1752892676391,5.64971751,177.0,176.99,0.03]
[1752892677080,14.12190024,177.03,176.99,0.73]
[1752892677392,5.6490792,177.02,176.99,0.73]
[1752892677894,8.68934647,177.02,176.99,0.03]
[1752892678076,3.04026727,177.01,176.99,0.73]
[1752892678489,5.64971751,177.0,176.99,0.73]
[1752892679003,5.64971751,177.0,176.99,0.03]
[1752892679997,5.64971751,177.0,176.99,0.73]
[1752892680200,3.04026727,177.02,176.99,0.73]
[1752892680500,5.64876009,177.03,176.99,3.77026727]
[1752892680699,5.64876009,177.03,177.0,0.7]
[1752892680883,5.64876009,177.03,177.01,41.84]
[1752892681374,5.70844103,177.04,177.01,41.84]
[1752892681575,8.7487083,177.04,177.01,41.84]
[1752892681983,3.04026727,177.03,177.01,41.84]
[1752892682592,5.6490792,177.02,177.01,41.14]
[1752892683371,5.6490792,177.02,177.01,41.84]
[1752892684283,0.06,177.04,177.01,41.84]
[1752892684478,5.70849219,177.04,177.02,0.7]
[1752892684873,5.70849219,177.04,177.01,41.14]
[1752892685071,5.70849219,177.04,177.03,0.7]
[1752892685788,0.06,177.04,177.03,0.7]
[1752892686783,5.70844103,177.04,177.03,0.7]
[1752892687903,0.06,177.04,177.03,0.7]
[1752892689105,3.10026727,177.04,177.01,41.83]
[1752892689484,0.06,177.04,177.02,0.69]
[1752892690985,0.06,177.04,177.02,3.73026727]
[1752892691594,0.06,177.04,177.03,0.69]
[1752892695494,0.06,177.04,177.03,3.73026727]
[1752892697311,0.06,177.04,177.03,0.69]
[1752892700116,0.06,177.04,177.03,3.73026727]
[1752892701189,0.06,177.04,177.03,0.69]
[1752892703197,0.06,177.04,177.03,3.73026727]
[1752892704118,0.06,177.04,177.03,0.69]
[1752892705216,0.06,177.04,177.03,3.73026727]
[1752892707405,0.06,177.04,177.03,0.69]
[1752892707606,0.06,177.04,177.03,3.73026727]
[1752892709820,0.06,177.04,177.01,130.2415]
[1752892710026,0.06,177.04,177.02,3.73026727]
[1752892710319,0.06,177.04,177.02,0.69]
[1752892710514,5.70844103,177.04,177.01,132.47026727]
[1752892711104,3.71026727,177.03,177.01,87.6]
[1752892711446,3.04026727,177.03,177.02,40.74]
[1752892711605,3.04026727,177.03,177.02,40.72]
[1752892711807,0.67,177.03,177.02,40.72]
[1752892712118,3.71026727,177.03,177.02,40.72]
[1752892712649,9.35902736,177.03,177.02,40.72]
[1752892713328,12.39929463,177.03,177.02,40.72]
[1752892713849,26.52119487,177.03,176.99,0.03]
[1752892714004,0.67,177.02,177.0,40.72]
[1752892714204,3.04026727,177.01,177.0,40.72]
[1752892714409,3.71026727,177.01,177.0,40.72]
[1752892715300,9.3596656,177.01,177.0,40.72]
[1752892715505,9.3596656,177.01,176.99,0.03]
[1752892715719,3.71026727,177.0,176.99,40.71]
[1752892716424,0.67,177.0,176.99,40.71]
[1752892716747,3.04026727,177.0,176.99,40.71]
[1752892718929,5.64939833,177.01,176.99,40.71]
[1752892719138,8.6896656,177.01,176.99,40.71]
[1752892719438,8.6896656,177.01,176.99,41.41]
[1752892720323,3.04026727,177.0,176.99,40.71]
[1752892720715,3.75026727,177.0,176.99,40.71]
[1752892721026,3.04026727,177.0,176.99,40.71]
[1752892721228,8.6896656,177.01,176.99,40.71]